bitfinex/quotes_BTCUSD_20240717
["timestamp","ask_amount","ask_price","bid_price","bid_amount"]
[1721174754054,0.07216,65245.0,65242.0,2.542575]
[1721174754252,0.07216,65245.0,65242.0,2.94470139]
[1721174754460,0.00836,65245.0,65242.0,3.05099394]
[1721174755935,0.00836,65245.0,65242.0,2.69444394]
[1721174756136,0.00836,65245.0,65242.0,2.09418039]
[1721174756360,0.00836,65245.0,65242.0,2.73543995]
[1721174756609,0.00836,65245.0,65242.0,3.07898995]
[1721174757698,0.00836,65245.0,65244.0,1.735975]
[1721174757897,0.00836,65245.0,65244.0,2.31536549]
[1721174758103,0.00836,65245.0,65244.0,2.32165127]
[1721174758316,0.1414,65255.0,65254.0,2.235717]
[1721174758531,0.1414,65255.0,65254.0,2.7379327]
[1721174758740,0.1414,65255.0,65254.0,2.61695507]
[1721174759166,0.1414,65255.0,65254.0,2.74419752]
[1721174759391,0.1414,65255.0,65254.0,2.61695507]
[1721174759609,0.1414,65255.0,65254.0,2.75819753]
[1721174759816,0.1414,65255.0,65254.0,2.37870353]
[1721174760051,0.1414,65255.0,65254.0,2.23746107]
[1721174760293,0.1414,65255.0,65254.0,1.29058533]
[1721174760467,0.1414,65255.0,65254.0,1.79058533]
[1721174760677,0.1414,65255.0,65254.0,1.29058533]
[1721174760891,0.1414,65255.0,65254.0,1.30458533]
[1721174761156,0.1414,65255.0,65254.0,1.80458533]
[1721174761404,0.1414,65255.0,65254.0,1.30458533]
[1721174762068,0.1414,65255.0,65254.0,1.81546107]
[1721174762532,0.1414,65255.0,65254.0,2.12195507]
[1721174762769,0.1414,65255.0,65254.0,2.13595507]
[1721174762997,0.1414,65255.0,65254.0,2.15895507]
[1721174763244,0.1414,65255.0,65254.0,1.80246107]
[1721174763492,0.1414,65255.0,65254.0,1.77946107]
[1721174764189,0.1414,65255.0,65254.0,1.82946107]
[1721174765437,0.1414,65255.0,65254.0,1.95671253]
[1721174766200,0.1414,65255.0,65254.0,2.26320653]
[1721174766337,0.1414,65255.0,65254.0,2.28620653]
[1721174768069,0.1414,65255.0,65254.0,1.77946107]
[1721174768271,0.1414,65255.0,65254.0,1.90670874]
[1721174768494,0.1414,65255.0,65254.0,1.77946107]
[1721174768631,0.1414,65255.0,65254.0,1.90671245]
[1721174769384,0.1414,65255.0,65254.0,1.98388724]
[1721174769533,0.1414,65255.0,65254.0,2.03388724]
[1721174769956,0.1414,65255.0,65254.0,2.34038124]
[1721174770378,0.1414,65255.0,65254.0,2.36338124]
[1721174770753,0.1414,65255.0,65254.0,2.36394524]
[1721174771156,0.1414,65255.0,65254.0,1.95727645]
[1721174771371,0.1414,65255.0,65254.0,1.95726588]
[1721174771679,0.1414,65255.0,65254.0,1.90726588]
[1721174771884,0.1414,65255.0,65254.0,1.95726588]
[1721174772499,0.1414,65255.0,65254.0,2.28675988]
[1721174773021,0.0807,65255.0,65254.0,2.36393467]
[1721174773214,0.08336,65258.0,65257.0,1.73564]
[1721174773369,0.08336,65258.0,65257.0,2.21686669]
[1721174773569,0.08336,65258.0,65257.0,2.22296324]
[1721174774466,0.08336,65258.0,65257.0,2.09572243]
[1721174774661,0.05836,65258.0,65257.0,2.2229552]
[1721174774866,0.05836,65258.0,65257.0,2.2369552]
[1721174775070,0.05836,65258.0,65257.0,2.41184994]
[1721174775269,0.05836,65258.0,65257.0,2.2229552]
[1721174775509,0.05836,65258.0,65257.0,2.39784994]
[1721174775824,0.05836,65258.0,65257.0,2.42084994]
[1721174776026,0.05836,65258.0,65257.0,2.43484994]
[1721174776230,0.05836,65258.0,65257.0,2.74132994]
[1721174776466,0.00836,65260.0,65259.0,1.89729]
[1721174776467,1e-06,65260.0,65259.0,1.89729]
[1721174776670,1e-06,65260.0,65259.0,2.7007592]
[1721174776870,1e-06,65260.0,65259.0,3.79332165]
[1721174777230,1e-06,65260.0,65259.0,3.74332165]
[1721174777437,1e-06,65260.0,65259.0,4.50949865]
[1721174777755,0.00836,65279.0,65278.0,2.235095]
[1721174777932,0.00836,65279.0,65278.0,2.90838628]
[1721174778132,0.00836,65279.0,65278.0,3.22084651]
[1721174778543,0.00836,65279.0,65278.0,3.28443435]
[1721174779105,0.00836,65279.0,65278.0,3.24929533]
[1721174779389,0.00836,65279.0,65278.0,3.23529533]
[1721174779591,0.00836,65279.0,65278.0,3.19929533]
[1721174779989,0.00836,65279.0,65278.0,3.24929533]
[1721174780226,0.00836,65279.0,65278.0,3.07389905]
[1721174780448,0.00836,65279.0,65278.0,3.15107384]
[1721174780666,0.00836,65279.0,65278.0,3.13707384]
[1721174780835,0.00836,65279.0,65278.0,2.63707384]
[1721174781045,0.00836,65279.0,65278.0,2.73951805]
[1721174781198,0.00836,65279.0,65278.0,2.25351805]
[1721174781403,0.00836,65279.0,65278.0,2.75351805]
[1721174781611,0.00836,65279.0,65278.0,2.25351805]
[1721174782008,0.00836,65279.0,65278.0,2.76751805]
[1721174783714,0.00336,65279.0,65278.0,2.76751805]
[1721174784039,0.00336,65279.0,65278.0,2.140338]
[1721174784259,0.00336,65279.0,65278.0,2.26752043]
[1721174784465,0.00336,65279.0,65278.0,1.88813943]
[1721174784703,0.00336,65279.0,65278.0,2.38813943]
[1721174784907,0.00336,65279.0,65278.0,1.78813943]
[1721174785107,0.00336,65279.0,65278.0,1.32737669]
[1721174785309,0.14526,65279.0,65278.0,1.32737669]
[1721174785515,0.14526,65279.0,65278.0,0.89381326]
[1721174785890,0.14526,65279.0,65278.0,0.57343226]
[1721174786090,0.14526,65279.0,65278.0,0.86581326]
[1721174786485,0.14526,65279.0,65278.0,1.18619426]
[1721174786685,0.00336,65279.0,65278.0,1.82416859]
[1721174786887,0.00336,65279.0,65278.0,2.13054959]
[1721174787139,0.00336,65279.0,65278.0,2.57134959]
[1721174787338,0.00336,65279.0,65278.0,2.75752157]
[1721174787567,0.00336,65279.0,65278.0,2.77577818]
[1721174787768,0.00336,65279.0,65278.0,2.78477818]
[1721174787940,0.00336,65279.0,65278.0,2.28477818]
[1721174788142,0.00336,65279.0,65278.0,2.78052157]
[1721174788513,0.00336,65279.0,65278.0,2.29877818]
[1721174788645,0.00336,65279.0,65278.0,2.26652157]
[1721174788989,0.00336,65279.0,65278.0,2.28052157]
[1721174789367,0.00336,65279.0,65278.0,2.75352157]
[1721174789572,0.00336,65279.0,65278.0,2.76752157]
[1721174789779,0.00336,65279.0,65278.0,2.78577818]
[1721174789953,0.00336,65279.0,65278.0,2.75352157]
[1721174790290,0.00336,65279.0,65278.0,2.76752157]
[1721174790475,0.00336,65279.0,65278.0,2.7675227]
[1721174791058,0.00336,65279.0,65278.0,2.7535227]
[1721174791891,0.00336,65279.0,65278.0,2.7675227]
[1721174792491,0.00336,65279.0,65278.0,2.7815227]
[1721174794085,0.00336,65279.0,65278.0,3.0879037]
[1721174794286,0.00336,65279.0,65278.0,3.2314037]
[1721174794923,0.00336,65279.0,65278.0,3.2174037]
[1721174795278,0.00336,65279.0,65278.0,3.2034037]
[1721174795482,0.00336,65279.0,65278.0,3.2174037]
[1721174795685,0.00336,65279.0,65278.0,2.2535227]
[1721174796090,0.00336,65279.0,65278.0,2.4021417]
[1721174796337,0.00336,65279.0,65278.0,2.4381417]
[1721174796550,0.00336,65279.0,65278.0,2.7445227]
[1721174796748,0.00336,65279.0,65278.0,2.77675601]
[1721174796955,0.00336,65279.0,65278.0,2.90331799]
[1721174797446,0.00336,65279.0,65278.0,3.45743197]
[1721174797684,0.00336,65279.0,65278.0,3.47143197]
[1721174798394,0.00836,65291.0,65290.0,2.688212]
[1721174798628,0.00836,65291.0,65290.0,3.51436674]
[1721174799116,0.00836,65291.0,65290.0,3.49614603]
[1721174799857,0.00836,65291.0,65290.0,3.06187124]
[1721174800089,0.00836,65291.0,65290.0,2.56187124]
[1721174800531,0.00836,65291.0,65290.0,2.26954624]
[1721174800760,0.00836,65291.0,65290.0,2.76954624]
[1721174800988,0.00836,65291.0,65290.0,2.78776057]
[1721174801220,0.00836,65291.0,65290.0,2.80176057]
[1721174801464,0.00836,65291.0,65290.0,2.78354624]
[1721174801937,0.00836,65291.0,65290.0,2.28354624]
[1721174802232,0.00836,65291.0,65290.0,2.30176538]
[1721174802470,0.00836,65291.0,65290.0,2.78354624]
[1721174802934,0.00836,65291.0,65290.0,2.78353406]
[1721174803153,0.00836,65291.0,65290.0,2.28353406]
[1721174803377,0.00836,65291.0,65290.0,2.78353406]
[1721174804082,0.00836,65291.0,65290.0,2.86070885]
[1721174804315,0.00836,65291.0,65290.0,2.87893121]
[1721174804799,0.00836,65291.0,65290.0,3.16703385]
[1721174805407,0.00836,65291.0,65290.0,3.34335031]
[1721174805561,0.00836,65291.0,65290.0,3.03702531]
[1721174806194,0.00836,65291.0,65290.0,3.10055801]
[1721174806873,0.00836,65291.0,65290.0,2.81069436]
[1721174807094,0.15546,65291.0,65290.0,2.81069436]
[1721174807265,0.15546,65291.0,65290.0,2.40419457]
[1721174809251,0.15546,65291.0,65290.0,2.27704125]
[1721174809429,0.15546,65291.0,65290.0,2.40421148]
[1721174809635,0.15546,65291.0,65290.0,2.24982974]
[1721174809852,0.15546,65291.0,65290.0,1.44350474]
[1721174810252,0.15546,65291.0,65290.0,1.40150474]
[1721174810457,0.15546,65291.0,65290.0,1.31550474]
[1721174810656,0.15546,65291.0,65290.0,0.09561699]
[1721174810879,0.15546,65291.0,65290.0,0.153162]
[1721174810880,0.00836,65291.0,65290.0,0.153162]
[1721174811063,0.00836,65291.0,65288.0,0.306333]
[1721174811270,0.00836,65291.0,65283.0,0.306357]
[1721174811271,0.161521,65291.0,65283.0,0.153179]
[1721174811663,0.0622,65288.0,65284.0,0.00542664]
[1721174811867,0.224,65286.0,65278.0,0.00181333]
[1721174812060,0.0758,65283.0,65277.0,0.0496478]
[1721174812321,0.0758,65281.0,65278.0,0.15319]
[1721174812493,0.0758,65279.0,65278.0,0.15319]
[1721174812670,0.1395,65279.0,65278.0,0.24880699]
[1721174812869,0.1395,65279.0,65278.0,0.74880699]
[1721174813240,0.1395,65279.0,65278.0,1.05611199]
[1721174813438,0.1395,65279.0,65278.0,1.06511199]
[1721174813873,0.1395,65279.0,65278.0,1.06711199]
[1721174814100,0.1405,65279.0,65278.0,1.69087399]
[1721174814298,0.1415,65279.0,65278.0,0.57811199]
[1721174814702,0.1415,65279.0,65278.0,1.19087399]
[1721174817457,0.1415,65279.0,65278.0,1.69087399]
[1721174818234,0.1415,65279.0,65278.0,2.00268509]
[1721174821405,0.1415,65279.0,65278.0,2.15706683]
[1721174821406,0.002,65279.0,65278.0,2.15706683]
[1721174821818,0.002,65279.0,65278.0,2.30706683]
[1721174822019,0.002,65279.0,65278.0,2.20244783]
[1721174822249,0.002,65279.0,65278.0,2.82964982]
[1721174822452,0.002,65279.0,65278.0,2.70244783]
[1721174822659,0.002,65279.0,65278.0,2.82964345]
[1721174822864,4.502,65279.0,65278.0,2.82964345]
[1721174823068,4.501,65279.0,65278.0,3.12502445]
[1721174823290,4.502,65279.0,65278.0,3.13802445]
[1721174823637,4.501,65279.0,65278.0,3.12702445]
[1721174823846,4.501,65279.0,65278.0,3.14102445]
[1721174824049,4.5,65279.0,65278.0,3.00082883]
[1721174824253,4.5,65279.0,65278.0,3.12800818]
[1721174825454,4.5,65279.0,65278.0,3.14200818]
[1721174825654,4.5,65279.0,65278.0,2.83562718]
[1721174826056,4.5,65279.0,65278.0,2.34962718]
[1721174826254,4.5,65279.0,65278.0,2.84962718]
[1721174827349,4.5,65279.0,65278.0,2.28363541]
[1721174827524,4.5,65279.0,65278.0,2.78363541]
[1721174829096,4.5,65279.0,65278.0,3.09001641]
[1721174829292,4.5,65279.0,65278.0,2.78363541]
[1721174829715,4.5,65279.0,65278.0,2.86013541]
[1721174832321,4.5,65279.0,65278.0,3.39051641]
[1721174832493,4.5,65279.0,65278.0,3.45351641]
[1721174833362,4.5,65279.0,65278.0,3.09713541]
[1721174833575,4.5,65279.0,65278.0,2.92313541]
[1721174833785,4.5,65279.0,65278.0,2.87312525]
[1721174833980,4.5,65279.0,65278.0,2.92312525]
[1721174834196,4.5,65279.0,65278.0,3.22950625]
[1721174834325,4.5,65279.0,65278.0,2.92312525]
[1721174834711,4.5,65279.0,65278.0,3.22950625]
[1721174836605,4.49622519,65279.0,65278.0,3.22950625]
[1721174836846,4.49622519,65279.0,65278.0,3.10232883]
[1721174837010,4.49622519,65279.0,65278.0,3.21550546]
[1721174837345,4.49622519,65279.0,65278.0,3.43950546]
[1721174837897,4.49622519,65279.0,65278.0,3.22950546]
[1721174838284,4.49622519,65279.0,65278.0,3.2032994]
[1721174838703,4.49622519,65279.0,65278.0,3.1892994]
[1721174838925,4.49622519,65279.0,65278.0,3.2032994]
[1721174839255,4.49622519,65279.0,65278.0,3.07612277]
[1721174839451,4.49622519,65279.0,65278.0,3.21729968]
[1721174839603,4.49622519,65279.0,65278.0,3.20329968]
[1721174839976,4.49622519,65279.0,65278.0,3.21729968]
[1721174840177,4.49622519,65279.0,65278.0,3.09012277]
[1721174840403,4.49622519,65279.0,65278.0,3.50488727]
[1721174841257,4.49622519,65279.0,65278.0,3.40927028]
[1721174842427,4.49622519,65279.0,65278.0,3.57097028]
[1721174842677,4.49622519,65279.0,65278.0,4.41097028]
[1721174842882,4.49622519,65279.0,65278.0,3.77733116]
[1721174843227,4.49622519,65279.0,65278.0,3.77536813]
[1721174843403,4.49622519,65279.0,65278.0,3.93626211]
[1721174843610,4.49622519,65279.0,65278.0,3.76136123]
[1721174843858,4.49622519,65279.0,65278.0,5.54495611]
[1721174844031,3.27572519,65279.0,65278.0,5.83128384]
[1721174844438,3.27572519,65279.0,65278.0,5.8999456]
[1721174844637,3.27572519,65279.0,65278.0,5.9139456]
[1721174845051,3.27572519,65279.0,65278.0,6.05027319]
[1721174845305,2.68539167,65279.0,65278.0,5.9139456]
[1721174845496,2.42594693,65279.0,65278.0,5.8374456]
[1721174845695,2.40957771,65279.0,65278.0,5.65963788]
[1721174845857,2.35666702,65279.0,65278.0,5.64563788]
[1721174846441,2.35666702,65279.0,65278.0,5.63562969]
[1721174846679,2.35666702,65279.0,65278.0,7.14962969]
[1721174846899,2.31858675,65279.0,65278.0,7.14962969]
[1721174847040,2.31858675,65279.0,65278.0,7.08943741]
[1721174847243,2.27104381,65279.0,65278.0,7.14962969]
[1721174847521,2.25227012,65279.0,65278.0,7.14962969]
[1721174848515,2.25227012,65279.0,65278.0,7.53362969]
[1721174848735,2.25227012,65279.0,65278.0,7.42343741]
[1721174848909,2.25227012,65279.0,65278.0,7.45943741]
[1721174849119,2.10361746,65279.0,65278.0,7.42443741]
[1721174849293,2.10361746,65279.0,65278.0,7.47062969]
[1721174849499,2.10361746,65279.0,65278.0,6.95526931]
[1721174849699,2.10361746,65279.0,65278.0,7.40215839]
[1721174850013,2.10361746,65279.0,65278.0,7.45215839]
[1721174850259,0.79120346,65279.0,65278.0,7.45215839]
[1721174850445,0.72993346,65279.0,65278.0,7.43815839]
[1721174850660,0.5933252,65279.0,65278.0,7.45215839]
[1721174850987,0.00836,65309.0,65278.0,7.45215839]
[1721174850988,0.00836,65309.0,65308.0,1.13386]
[1721174851199,0.46304871,65322.0,65321.0,0.70171]
[1721174851200,0.43978584,65322.0,65321.0,0.70171]
[1721174851408,0.0001,65331.0,65323.0,0.509255]
[1721174851611,0.0001,65331.0,65330.0,1.409207]
[1721174851773,0.0001,65331.0,65330.0,1.73288989]
[1721174851940,0.0001,65331.0,65330.0,3.26772262]
[1721174852152,0.0001,65331.0,65330.0,3.22500876]
[1721174852381,0.0001,65331.0,65330.0,3.44800876]
[1721174852592,0.0001,65331.0,65330.0,3.32088633]
[1721174852786,0.0001,65331.0,65330.0,3.4479633]
[1721174852980,1e-06,65331.0,65330.0,3.4479633]
[1721174853133,1e-06,65331.0,65330.0,4.0649633]
[1721174853354,1e-06,65331.0,65330.0,4.2659633]
[1721174853558,1e-06,65331.0,65330.0,4.2299633]
[1721174853758,0.142,65338.0,65330.0,4.2299633]
[1721174853759,0.142,65338.0,65337.0,2.233577]
[1721174853994,0.366,65338.0,65337.0,2.66159617]
[1721174854148,0.366,65338.0,65337.0,2.71863792]
[1721174854567,0.366,65338.0,65337.0,2.36253292]
[1721174854941,0.301,65338.0,65337.0,0.24961246]
[1721174855052,0.3633,65338.0,65337.0,0.24961246]
[1721174855255,0.1393,65338.0,65337.0,0.40961907]
[1721174855483,0.1406,65336.0,65330.0,0.014]
[1721174855697,0.0648,65336.0,65335.0,0.153055]
[1721174855898,0.2888,65336.0,65335.0,0.70903163]
[1721174856276,0.3673,65336.0,65335.0,0.09548089]
[1721174856452,0.1395,65336.0,65335.0,0.09548089]
[1721174856655,0.153056,65336.0,65324.0,0.2028055]
[1721174856880,0.224,65325.0,65324.0,0.0497235]
[1721174857058,0.224,65325.0,65324.0,0.14520439]
[1721174857059,0.285,65325.0,65324.0,0.14520439]
[1721174857264,0.285,65325.0,65324.0,0.09548089]
[1721174857734,0.3629,65325.0,65324.0,0.09548089]
[1721174858144,0.3629,65325.0,65323.0,0.09548089]
[1721174858145,0.0601,65324.0,65323.0,0.09548089]
[1721174858343,0.0601,65324.0,65319.0,0.153094]
[1721174858545,0.0601,65324.0,65323.0,0.09548089]
[1721174860169,0.0601,65324.0,65323.0,0.014]
[1721174860369,0.0601,65324.0,65323.0,0.028]
[1721174860571,0.0601,65324.0,65323.0,0.042]
[1721174860790,0.0601,65324.0,65323.0,0.13748089]
[1721174861322,0.1408,65324.0,65323.0,0.07088089]
[1721174861598,0.0426,65324.0,65323.0,0.09723937]
[1721174861752,0.224,65325.0,65312.0,0.00181333]
[1721174861753,0.0426,65322.0,65314.0,0.00181333]
[1721174861961,0.0426,65322.0,65316.0,0.1531]
[1721174862138,0.0426,65322.0,65315.0,0.306207]
[1721174862139,0.0426,65322.0,65317.0,0.153099]
[1721174862346,0.0124,65321.0,65317.0,0.00520393]
[1721174862554,0.0426,65318.0,65317.0,0.00520393]
[1721174862785,0.0426,65318.0,65317.0,0.09723937]
[1721174863200,0.0426,65318.0,65317.0,0.00520393]
[1721174863402,0.0426,65318.0,65317.0,0.002]
[1721174863601,0.0426,65318.0,65317.0,0.00720393]
[1721174863602,0.055,65318.0,65317.0,0.00720393]
[1721174863802,0.055,65318.0,65317.0,0.002]
[1721174864006,0.055,65318.0,65317.0,0.008]
[1721174864617,0.055,65318.0,65317.0,0.006]
[1721174865089,0.056,65318.0,65317.0,0.006]
[1721174865329,0.056,65318.0,65311.0,0.00181333]
[1721174865758,0.056,65318.0,65312.0,0.00523693]
[1721174865759,0.057,65318.0,65312.0,0.00523693]
[1721174865973,0.224,65313.0,65311.0,0.153112]
[1721174866212,0.057,65318.0,65317.0,0.959297]
[1721174866213,0.002,65318.0,65317.0,0.959297]
[1721174866429,0.002,65318.0,65317.0,1.80324953]
[1721174866430,0.008,65318.0,65317.0,1.80324953]
[1721174866607,0.008,65318.0,65317.0,2.38500393]
[1721174866806,0.008,65318.0,65317.0,2.79120193]
[1721174867230,0.0426,65337.0,65336.0,1.265272]
[1721174867356,0.0426,65337.0,65336.0,1.66458902]
[1721174867560,0.0426,65337.0,65336.0,1.66979608]
[1721174867793,0.0124,65340.0,65339.0,0.765237]
[1721174867993,0.0426,65342.0,65341.0,0.153043]
[1721174868202,0.00835,65345.0,65344.0,0.459108]
[1721174868413,0.00835,65345.0,65344.0,0.85838802]
[1721174868658,0.00835,65345.0,65344.0,0.86358771]
[1721174869854,0.00935,65345.0,65344.0,0.77037969]
[1721174870262,0.00835,65345.0,65344.0,1.07645169]
[1721174870467,0.00835,65345.0,65344.0,1.30800822]
[1721174870468,0.00935,65345.0,65344.0,1.30800822]
[1721174870638,0.00935,65345.0,65344.0,1.23083343]
[1721174871484,0.01035,65345.0,65344.0,1.24283343]
[1721174871891,0.00935,65345.0,65344.0,1.61408022]
[1721174872099,0.01035,65345.0,65344.0,2.04515222]
[1721174872303,0.01035,65345.0,65344.0,2.25211785]
[1721174872502,0.01035,65345.0,65344.0,2.3476678]
[1721174872701,0.00935,65345.0,65344.0,2.3346678]
[1721174872972,0.00935,65345.0,65344.0,2.4476678]
[1721174873180,0.01035,65345.0,65344.0,2.4476678]
[1721174873673,0.00935,65345.0,65344.0,2.4476678]
[1721174873814,0.01035,65345.0,65344.0,2.4476678]
[1721174874234,0.00935,65345.0,65344.0,2.74072863]
[1721174874466,0.00935,65345.0,65344.0,2.76372863]
[1721174874700,0.01035,65345.0,65344.0,2.77672863]
[1721174874840,0.01035,65345.0,65344.0,2.59158463]
[1721174875040,0.01035,65345.0,65344.0,2.64158463]
[1721174875294,0.00935,65345.0,65344.0,2.82858463]
[1721174875486,0.01035,65345.0,65344.0,3.13465663]
[1721174875652,0.01035,65345.0,65344.0,3.14765663]
[1721174875653,0.00935,65345.0,65344.0,3.14765663]
[1721174876082,0.00935,65345.0,65344.0,2.89765663]
[1721174876083,0.01035,65345.0,65344.0,2.89765663]
[1721174876341,0.01035,65345.0,65344.0,2.94765663]
[1721174876539,0.01035,65345.0,65344.0,2.97065663]
[1721174876829,0.01035,65345.0,65344.0,2.95765663]
[1721174876994,0.00835,65345.0,65344.0,2.95765663]
[1721174877219,0.00835,65345.0,65344.0,2.90765663]
[1721174877367,0.00835,65345.0,65344.0,2.95764543]
[1721174877782,0.00935,65345.0,65344.0,2.83060217]
[1721174877985,0.00935,65345.0,65344.0,2.82857324]
[1721174878192,0.01035,65345.0,65344.0,2.84157324]
[1721174878678,0.01035,65345.0,65344.0,2.99360217]
[1721174878822,0.0145264,65360.0,65359.0,1.571007]
[1721174878823,0.0122264,65360.0,65359.0,1.571007]
[1721174879036,0.0122264,65360.0,65359.0,1.82477365]
[1721174879282,0.0122264,65360.0,65359.0,1.82971101]
[1721174879737,0.0122264,65360.0,65359.0,2.13571301]
[1721174880099,0.0132264,65360.0,65359.0,2.14871301]
[1721174880329,0.0142264,65360.0,65359.0,1.03670901]
[1721174880532,0.0266264,65360.0,65359.0,0.88232727]
[1721174883281,0.0142264,65360.0,65359.0,0.11732227]
[1721174883477,0.0568264,65360.0,65359.0,0.11732227]
[1721174884982,0.2222244,65360.0,65359.0,0.11732227]
[1721174885201,0.8342184,65360.0,65359.0,0.01793736]
[1721174885401,0.153016,65353.0,65342.0,0.96304871]
[1721174885598,0.306024,65355.0,65342.0,1.11608871]
[1721174885599,0.0426,65352.0,65342.0,1.11608871]
[1721174885941,0.0426,65352.0,65343.0,0.00443823]
[1721174886520,0.055,65344.0,65341.0,0.0496347]
[1721174886725,0.003,65353.0,65346.0,0.5]
[1721174886924,0.0426,65356.0,65352.0,0.153017]
[1721174887120,0.0426,65356.0,65354.0,0.153012]
[1721174887430,0.0426,65356.0,65355.0,0.15301]
[1721174887612,0.0426,65356.0,65355.0,0.0934786]
[1721174887891,0.0426,65356.0,65346.0,0.5]
[1721174887892,0.0426,65356.0,65350.0,0.153022]
[1721174888689,0.007,65352.0,65346.0,0.5]
[1721174888860,0.0426,65356.0,65355.0,0.45903]
[1721174889012,0.001,65356.0,65355.0,0.55798459]
[1721174889571,0.0124,65358.0,65356.0,0.153007]
[1721174890123,0.0124,65358.0,65357.0,0.153005]
[1721174890325,0.0122264,65360.0,65359.0,0.459003]
[1721174890524,0.0122264,65360.0,65359.0,1.01834133]
[1721174891180,0.0122264,65360.0,65359.0,1.51834133]
[1721174891540,0.0122264,65360.0,65359.0,1.82434333]
[1721174892097,0.0122264,65360.0,65359.0,1.82572133]
[1721174892964,0.0122264,65360.0,65359.0,1.83240143]
[1721174893520,0.0132264,65360.0,65359.0,1.83240143]
[1721174893881,0.0122264,65360.0,65359.0,1.83240143]
[1721174894105,0.0122264,65360.0,65359.0,1.33240143]
[1721174894292,0.0132264,65360.0,65359.0,1.02639943]
[1721174894742,0.0132264,65360.0,65359.0,1.33240143]
[1721174895398,0.0142264,65360.0,65359.0,1.33240143]
[1721174896193,0.0142264,65360.0,65359.0,1.45945423]
[1721174896194,0.0132264,65360.0,65359.0,1.45945423]
[1721174896730,0.0152264,65360.0,65359.0,1.46845423]
[1721174896966,0.0142264,65360.0,65359.0,1.46845423]
[1721174897196,0.0142264,65360.0,65359.0,1.45945423]
[1721174897405,0.0152264,65360.0,65359.0,1.46845423]
[1721174898106,0.0152264,65360.0,65359.0,0.85645023]
[1721174898332,0.0152264,65360.0,65359.0,1.16245223]
[1721174898551,0.0132264,65360.0,65359.0,1.66245223]
[1721174898767,0.0132264,65360.0,65359.0,1.66645223]
[1721174898987,0.0132264,65360.0,65359.0,1.97245423]
[1721174899198,0.0132264,65360.0,65359.0,1.97345423]
[1721174899408,0.0132264,65360.0,65359.0,1.98645423]
[1721174899626,0.0132264,65360.0,65359.0,1.97245423]
[1721174900055,0.0142264,65360.0,65359.0,1.98645423]
[1721174900270,0.0142264,65360.0,65359.0,1.85940143]
[1721174900563,0.0142264,65360.0,65359.0,2.13375342]
[1721174900778,0.0142264,65360.0,65359.0,2.00670143]
[1721174900998,0.0142264,65360.0,65359.0,2.00002133]
[1721174903002,0.0142264,65360.0,65359.0,2.12706946]
[1721174904413,0.0142264,65360.0,65359.0,2.00002133]
[1721174904638,0.0142264,65360.0,65359.0,2.43306843]
[1721174905836,0.0142264,65360.0,65359.0,2.48306843]
[1721174906290,0.0142264,65360.0,65359.0,2.78907043]
[1721174906721,0.0142264,65360.0,65359.0,2.43306843]
[1721174907175,0.0142264,65360.0,65359.0,2.48306843]
[1721174907862,0.0142264,65360.0,65359.0,2.48305473]
[1721174908135,0.0142264,65360.0,65359.0,2.43305473]
[1721174908777,0.0142264,65360.0,65359.0,2.43397873]
[1721174909222,0.0150664,65360.0,65359.0,2.43397873]
[1721174911294,0.0150664,65360.0,65359.0,2.30694733]
[1721174911522,0.0150664,65360.0,65359.0,2.48398394]
[1721174912227,0.0150664,65360.0,65359.0,2.58398394]
[1721174912455,0.0150664,65360.0,65359.0,2.53398394]
[1721174912686,0.00095764,65381.0,65375.0,0.152963]
[1721174912911,0.46304871,65382.0,65375.0,0.152963]
[1721174913127,0.0426,65383.0,65375.0,0.152963]
[1721174913431,0.2227,65377.0,65370.0,119.9849336]
[1721174913653,0.2227,65377.0,65370.0,120.29228934]
[1721174913857,0.2227,65377.0,65371.0,0.152972]
[1721174914454,0.2653,65383.0,65373.0,0.5]
[1721174914586,0.2653,65383.0,65374.0,0.15438174]
[1721174914792,0.007,65381.0,65375.0,0.002]
[1721174915192,0.012,65382.0,65373.0,0.652968]
[1721174915387,0.006,65377.0,65373.0,0.5]
[1721174915762,0.009,65377.0,65373.0,0.152966]
[1721174915953,0.009,65377.0,65375.0,0.001]
[1721174916154,0.009,65377.0,65375.0,0.153962]
[1721174916361,0.006,65377.0,65375.0,0.154962]
[1721174916561,0.018,65381.0,65375.0,0.154962]
[1721174916875,0.006,65377.0,65375.0,0.154962]
[1721174917091,0.006,65377.0,65375.0,0.002]
[1721174917254,0.006,65377.0,65375.0,0.307922]
[1721174917466,0.006,65377.0,65376.0,0.152961]
[1721174917804,0.0426,65383.0,65376.0,0.25074187]
[1721174917957,0.0426,65383.0,65379.0,0.07717479]
[1721174918159,0.0426,65383.0,65380.0,0.15295]
[1721174918969,0.0426,65389.0,65385.0,0.5]
[1721174919169,0.0426,65389.0,65386.0,0.152937]
[1721174920176,0.00835,65390.0,65386.0,0.152937]
[1721174920384,0.00835,65390.0,65389.0,0.15293]
[1721174920582,0.00835,65390.0,65389.0,0.55350685]
[1721174920806,0.00835,65390.0,65389.0,0.8348863]
[1721174920982,0.00835,65390.0,65389.0,1.1407473]
[1721174921832,0.00835,65390.0,65389.0,1.1437473]
[1721174922043,0.00935,65390.0,65389.0,1.1547473]
[1721174922434,0.00935,65390.0,65389.0,0.8458863]
[1721174922763,0.06435,65390.0,65389.0,0.11771585]
[1721174923732,0.00935,65390.0,65389.0,0.11771585]
[1721174923912,0.00935,65390.0,65389.0,0.73088859]
[1721174924114,0.00935,65390.0,65389.0,1.03674959]
[1721174924314,0.00935,65390.0,65389.0,1.16374336]
[1721174924621,0.00935,65390.0,65389.0,1.03674959]
[1721174925176,0.00935,65390.0,65389.0,1.46960335]
[1721174925301,0.00935,65390.0,65389.0,1.77546435]
[1721174925506,0.00935,65390.0,65389.0,1.77969471]
[1721174926168,0.00935,65390.0,65389.0,1.47383371]
[1721174926670,0.00935,65390.0,65389.0,1.77969471]
[1721174926879,0.00935,65390.0,65389.0,1.76768265]
[1721174927059,0.00935,65390.0,65389.0,1.96138265]
[1721174927252,0.00835,65390.0,65389.0,1.91338265]
[1721174927462,0.00835,65390.0,65389.0,1.9633713]
[1721174927665,0.00835,65390.0,65389.0,1.96254429]
[1721174928060,0.00835,65390.0,65389.0,1.91554429]